Cogmind - Beta 10.1 *** ADVENTURER MODE // 2020.10.03 @ 18:34:17 Player: Luigi Panache Result: Destroyed by S-10 Pest with Light Assault Rifle Performance ------------- Evolutions (0) 0 Regions Visited (2) 400 Robots Destroyed (24) 120 Value Destroyed (410) 410 Prototype IDs (0) 0 Alien Tech Used (0) 0 Bonus (0) 0 TOTAL SCORE: 930 Bonus ------- None Cogmind --------- Core Integrity 0/250 Matter 300/300 Energy 125/125 System Corruption 0% Temperature Cool (0) Movement Core (350) Ox6 Location -10/Mines Parts ------- > --- POWER (1) -------- Light Ion Engine > --- PROPULSION (2) --- (None) > --- UTILITY (2) ------ Large Storage Unit > --- WEAPON (2) ------- (None) > --- INVENTORY (10) --- Aluminum Leg Flight Unit Flight Unit Flight Unit Medium Storage Unit Medium Storage Unit Beam Cannon Light Assault Rifle Datajack Peak State ------------ > --- POWER ------------ Ion Engine > --- PROPULSION ------- Aluminum Leg Aluminum Leg > --- UTILITY ---------- Large Storage Unit Structural Scanner > --- WEAPON ----------- Beam Cannon Assault Rifle > --- INVENTORY -------- Light Ion Engine Aluminum Leg Flight Unit Flight Unit Flight Unit Medium Storage Unit Medium Storage Unit Tractor Beam Medium Laser Light Assault Rifle [Rating: 8] Favorites ----------- Power Ion Engine Engine Ion Engine Propulsion Aluminum Leg Leg Aluminum Leg Utility Structural Scanner Device Structural Scanner Storage Large Storage Unit Processor Seismic Analyzer Weapon Assault Rifle Energy Gun Medium Laser Energy Cannon Beam Cannon Ballistic Gun Assault Rifle Build | -11 -10 -10 ------- Run | Scr Mat Min Slots Evolved . | . . . Power . | . . . Propulsion . | . . . Utility . | . . . Weapon . | . . . Parts Attached 29 | 8 18 3 Power 3 | 2 . 1 Engine 3 | 2 . 1 Core . | . . . Reactor . | . . . Propulsion 13 | 2 10 1 Treads . | . . . Leg 13 | 2 10 1 Wheel . | . . . Hover . | . . . Flight . | . . . Utility 6 | 2 4 . Device 1 | . 1 . Storage 3 | 1 2 . Processor 2 | 1 1 . Hackware . | . . . Protection . | . . . Artifact . | . . . Weapon 7 | 2 4 1 Energy Gun 2 | 1 . 1 Energy Cannon 1 | . 1 . Ballistic Gun 4 | 1 3 . Ballistic Cannon . | . . . Launcher . | . . . Special Weapon . | . . . Impact Weapon . | . . . Slashing Weapon . | . . . Piercing Weapon . | . . . Special Melee Weapon . | . . . Unidentified Prototypes . | . . . Parts Lost 7 | . . 7 Power 1 | . . 1 Propulsion 3 | . . 3 Utility 1 | . . 1 Weapon 2 | . . 2 Highest Loss Streak 6 | . . 6 Average Slot Usage (%) 96 | . 99 91 Engine 12 | . 14 10 Leg 27 | . 27 27 Device 10 | . 8 13 Storage 14 | . 14 14 Processor 3 | . 5 . Energy Gun 2 | . 1 2 Energy Cannon 9 | . 9 9 Ballistic Gun 15 | . 16 12 Naked Turns . | . . . Heaviest Build 27 | 13 27 27 Greatest Support 20 | 20 20 20 Greatest Overweight (x) 6 | 4 5 6 Average Overweight (x) . | . . . Largest Inventory Capacity 10 | 6 10 10 Average Capacity 8 | 5 7 10 Most Carried 10 | 6 10 10 Average Carried 8 | 4 7 9 Final Capacity 10 | 6 10 10 Final Carried 10 | 6 10 9 Class Distribution -------------------- 100% | Mutant Dominant Class ---------------- Mutant | -10/Materials Mutant | -10/Mines Resources | -11 -10 -10 ----------- Run | Scr Mat Min Matter Collected 677 | 306 293 78 Remotely . | . . . Salvage Created 633 | 139 353 141 Parts 48 | 11 32 5 Haulers Intercepted . | . . . Recyclers Shooed 2 | . 2 . Parts Field Recycled . | . . . Retrieved Matter . | . . . Parts Self-Destructed . | . . . Prevented . | . . . Kills | -11 -10 -10 ------- Run | Scr Mat Min Combat Hostiles Destroyed 13 | . 8 5 Guns 11 | . 7 4 Cannons 2 | . 1 1 Classes Destroyed 8 | 2 5 1 Worker 1 | . 1 . Builder 1 | . 1 . Tunneler 5 | 4 1 . Recycler 1 | 1 . . Watcher 3 | . 3 . Swarmer 3 | . 3 . Grunt 8 | . 5 3 Assembled 2 | . . 2 Best Kill Streak 3 | 3 3 3 Combat Bots Only 3 | . 2 3 Max Kills in Single Turn 2 | 2 1 1 Gunslinging . | . . . Exploded . | . . . Melee . | . . . Uniques/NPCs Destroyed . | . . . Combat | -11 -10 -10 -------- Run | Scr Mat Min Damage Taken 966 | 13 184 769 Core 254 | 12 36 206 Absorbed by Shields . | . . . Core Remaining (%) 95 | 95 . . Volleys Fired 68 | 11 35 22 Largest 2 | 2 2 2 Hottest 80 | 70 80 80 Shots Fired 133 | 20 70 43 Gun 108 | 20 59 29 Cannon 25 | . 11 14 Launcher . | . . . Special . | . . . Kinetic 86 | 11 53 22 Thermal 47 | 9 17 21 Explosive . | . . . Electromagnetic . | . . . Robot Hit Streak 35 | 18 35 14 Robot Miss Streak 3 | . 3 2 Penetration Max . | . . . Secondary Targets 3 | . . 3 Max Gunslinging Chain 1 | . . 1 Shots Hit Robots 84 | 18 50 16 Core Hits 38 | 7 22 9 Critical Hits 1 | . . 1 Critical Kills . | . . . Critical Parts Destroyed 1 | . . 1 Melee Attacks . | . . . Impact . | . . . Slashing . | . . . Piercing . | . . . Sneak Attacks . | . . . Combat Hostiles . | . . . Follow-up Attacks . | . . . Damage Inflicted 1054 | 243 613 198 Guns 851 | 239 472 140 Cannons 193 | . 141 52 Explosions . | . . . Melee . | . . . Ramming 10 | 4 . 6 Kinetic 612 | 126 397 89 Thermal 432 | 113 216 103 Explosive . | . . . Electromagnetic . | . . . Impact . | . . . Slashing . | . . . Piercing . | . . . Highest Corruption . | . . . Average Corruption . | . . . Corruption Purged . | . . . Overload Shots . | . . . Overflow Damage 10 | . 10 . Projectiles 10 | . 10 . Explosions . | . . . Melee . | . . . Knockbacks . | . . . Impact . | . . . Kinetic . | . . . Secondary . | . . . Self-Inflicted Damage 1 | 1 . . Shots . | . . . Rammed 2 | 1 1 . Targets Rammed 5 | 2 1 2 Kicked 3 | 1 . 2 Crushed . | . . . Highest Temperature 100 | 36 72 100 Average Temperature 30 | 14 20 49 Received Heat Transfer 174 | . 96 78 Siege Activations . | . . . Robots Corrupted . | . . . Combat Hostiles . | . . . Parts Fried . | . . . Impact Corruptions . | . . . Robots Melted . | . . . Combat Hostiles . | . . . Parts Melted 3 | 1 2 . Heat Transferred 1110 | 333 518 259 Parts Sabotaged . | . . . Parts Stolen . | . . . Parts Stripped . | . . . Power Chain Reactions . | . . . Missiles Intercepted . | . . . Alert | -11 -10 -10 ------- Run | Scr Mat Min Peak Influence 129 | 25 129 60 Initial 13 | . 13 . Average 34 | 10 52 4 Maximum Alert Level . | . . . Low Security (%) 100 | 100 100 100 Level 1 . | . . . Level 2 . | . . . Level 3 . | . . . Level 4 . | . . . Level 5 . | . . . High Security . | . . . Max Security . | . . . Squads Dispatched 1 | . 1 . Investigation 1 | . 1 . Extermination . | . . . Reinforcement . | . . . Assault . | . . . Garrison . | . . . Intercept . | . . . Construction Impeded . | . . . Haulers Reinforced . | . . . Stealth | -11 -10 -10 --------- Run | Scr Mat Min Distress Signals 2 | . 2 . Communications Jammed . | . . . Distress Signals . | . . . Times Spotted 31 | . 22 9 Peak Tracking Total 5 | . 5 4 Tactical Retreats 6 | . 6 . Traps | -11 -10 -10 ------- Run | Scr Mat Min Traps Triggered 4 | . 4 . Indirectly . | . . . Trap Hack Attempts . | . . . Triggered . | . . . Disarmed 6 | . 6 . Reprogrammed 1 | . 1 . Reused 1 | . 1 . Traps Extracted . | . . . Installed . | . . . Triggered 1 | . 1 . Machines | -11 -10 -10 ---------- Run | Scr Mat Min Machines Disabled . | . . . Max in Single Turn . | . . . Machines Sabotaged . | . . . Garrisons Compromised . | . . . Overloaded Fab Kills . | . . . Fab Network Shutdowns . | . . . Hacking | -11 -10 -10 --------- Run | Scr Mat Min Machines Accessed 9 | . 9 . Terminals 8 | . 8 . Fabricators . | . . . Repair Stations 1 | . 1 . Recycling Units . | . . . Scanalyzers . | . . . Garrison Access . | . . . Total Hacks 24 | . 24 . Successful 12 | . 12 . Failed 12 | . 12 . Catastrophic 3 | . 3 . Database Lockouts . | . . . Manual 21 | . 21 . Terminals 20 | . 20 . Fabricators . | . . . Repair Stations 4 | . 4 . Recycling Units . | . . . Scanalyzers . | . . . Garrison Access . | . . . Terminal Hacks 8 | . 8 . Branch Access Points 1 | . 1 . Terminal Index 1 | . 1 . Disarm Traps 1 | . 1 . Reprogram Traps 1 | . 1 . Garrison Status 1 | . 1 . Hauler Manifests 1 | . 1 . Zone Layout 2 | . 2 . Fabricator Hacks . | . . . Repair Station Hacks 4 | . 4 . Scan Component 2 | . 2 . Repair 2 | . 2 . Recycling Unit Hacks . | . . . Scanalyzer . | . . . Garrison Access Hacks . | . . . Unauthorized Hacks . | . . . Terminals . | . . . Fabricators . | . . . Repair Stations . | . . . Recycling Units . | . . . Scanalyzers . | . . . Garrison Access . | . . . Data Cores Recovered . | . . . Used . | . . . Hacking Detections 9 | . 9 . Full Trace Events 1 | . 1 . Feedback Events . | . . . Feedback Blocked . | . . . Robot Schematics Acquired . | . . . Robots Built . | . . . Matter . | . . . Time . | . . . Total Robot Build Rating . | . . . Part Schematics Acquired . | . . . Parts Built . | . . . Matter . | . . . Time . | . . . Total Part Build Rating . | . . . Parts Repaired 2 | . 2 . Time 52 | . 52 . Parts Recycled . | . . . Recycled Matter . | . . . Retrieved Matter . | . . . Retrieved Components . | . . . Parts Scanalyzed . | . . . Part Schematics Acquired . | . . . Parts Damaged . | . . . Bothacking | -11 -10 -10 ------------ Run | Scr Mat Min Used RIF Installer . | . . . Robots Hacked . | . . . Non-combat . | . . . Combat . | . . . Robot Hacks Applied . | . . . Relay Couplers Released . | . . . Robots Rewired . | . . . Allies Hacked . | . . . Hacks Repelled . | . . . Allies | -11 -10 -10 -------- Run | Scr Mat Min Total Allies . | . . . Largest Group . | . . . Highest-Rated Group . | . . . Highest-Rated Ally . | . . . Total Orders . | . . . Ally Attacks . | . . . Total Damage . | . . . Kills . | . . . Allies Corrupted . | . . . Allies Melted . | . . . Intel | -11 -10 -10 ------- Run | Scr Mat Min Robot Analysis Total . | . . . Derelict Logs Recovered 1 | . . 1 Drone Launches . | . . . Drone Recoveries . | . . . Exploration | -11 -10 -10 ------------- Run | Scr Mat Min Turns Passed 2159 | 149 1340 670 Spaces Moved 1224 | 74 788 362 Core 77 | 13 62 2 Treads . | . . . Legs 1147 | 61 726 360 Wheels . | . . . Hover . | . . . Flight . | . . . Fastest Speed 50 | 50 120 120 Average Speed 141 | 134 138 148 Slowest Speed 350 | 250 300 350 Overloaded Moves . | . . . Propulsion Burnouts . | . . . Robots Hopped . | . . . Cave-ins Triggered . | . . . Exploration Rate (%) 51 | 4 96 55 Regions Visited 2 Branch Regions 1 Pre-discovered Areas . | . . . Known Exits Taken 1 | . 1 . Unknown Exits Taken 1 | 1 . . Scrap Searched 1 | . . 1 Spaces Dug . | . . . Terrain Destroyed . | . . . Melee . | . . . Projectile . | . . . AOE . | . . . Terrain Rammed . | . . . Walls Destroyed . | . . . Machines Disabled . | . . . Actions | -11 -10 -10 --------- Run | Scr Mat Min Total 1524 | 101 970 453 Wait 169 | . 107 62 Move 1222 | 73 787 362 Hop . | . . . Pick Up 15 | 6 8 1 Fast Attach 20 | 7 12 1 Attach 1 | . . 1 Detach 1 | . 1 . Swap 8 | 1 6 1 Drop 15 | 1 13 1 Fire 68 | 11 35 22 Melee . | . . . Ram 1 | . 1 . Kick 4 | 2 . 2 Crush . | . . . Escape Stasis . | . . . Rewire . | . . . Trap . | . . . Miscellaneous . | . . . Route ------- -11/Scrapyard -10/Materials (discovered 4 exits: [*Mat x3] / *Min) -10/Mines (discovered 1 exit: [*Mat]) History --------- Turn | Location | Event 34 | -11/Scrapyard | Discovered new exit (range 15) 150 | -11/Scrapyard | Entered Materials 278 | -10/Materials | Identified exit to Mines 304 | -10/Materials | Build established: Mutant 505 | -10/Materials | Discovered new exit (range 5) 833 | -10/Materials | Repaired Aluminum Leg 860 | -10/Materials | Repaired Flight Unit 950 | -10/Materials | Discovered new exit (range 12) 1249 | -10/Materials | Discovered new exit (range 15) 1490 | -10/Materials | Entered Mines 1666 | -10/Mines | Discovered new exit (range 12) 1734 | -10/Mines | Learned Materials emergency access door positions 1919 | -10/Mines | Excavation squad dispatched 1919 | -10/Mines | A large section of the Mines collapsed 2078 | -10/Mines | Core integrity fell below 50% 2136 | -10/Mines | Core integrity fell below 20% 2160 | -10/Mines | Destroyed by S-10 Pest with Light Assault Rifle Last Messages --------------- 02074_ T-07 Excavator is excavating. 02077_ K-01 Serf collects debris. 02077_ U-05 Engineer lays Concrete. 02078_ T-07 Excavator is excavating. 02080_ U-05 Engineer lays Concrete. 02081_ K-01 Serf collects debris. 02082_ U-05 Engineer lays Concrete. 02083_ T-07 Excavator is excavating. 02083_ U-05 Engineer lays Concrete. 02084_ T-07 Excavator is excavating. 02085_ K-01 Serf collects debris. 02085_ U-05 Engineer lays Concrete. 02088_ T-07 Excavator is excavating. 02089_ Med. Laser destroyed. 02100_ Assault Rifle destroyed. 02129_ Acquired 5 matter. 02130_ Structural Scanner destroyed. 02139_ Aluminum Leg destroyed. 02150_ as-77130 destroyed. 02154_ Aluminum Leg destroyed. Map ----- +----------------------------------------------------+ | ?????????# #????????????????????????????? | | ????????## ##????????????????????###?????? | | ???????## #?????????????????????# #????? | | ??????## #?????????????????????# #???? | | ??????# #?????????????????????? ##?? | | ??????# ## #??????????????????????# ##? | | ??????# ### #??????????????????????# #? | | ?????## #?# ###?????????????????????# #? | | ?????# #?# #??????????????????????# #? | | ?????# #?#### #???????????????????????# #? | | ?????# ##????# ##########?????????????## ## | | ?????## #?????# #####?????##### # | | ??????# ##????######### #????## | | ?????## #????????????# ### ###### # | | ?????# #????????????# #?# ## | | ????# ##????????????# #?## ###### #? | | ????# #?????????????# #??# ####### | | ????## ##?????????????# ##?# #?## | | ?????####?????????????## ####### #??## ### | | ??????????????????????# #????# #???#####?? | | ??????????????????????# ##???# #?????????? | | ?????????????????????## ##??# #?????????? | | ????????????????????## s % ##?# #?????????? | | ????????????????????# #?# #???????### | | ???????????????????## ss ### ##?????## | | ??????????????????## @ ## ##???## | | ?????????????????## #??## | | ?????????????????# #?## | | ?????????????????# < ## #### | | ?????????????????## #### ##?# | | ??????????????????## ##??# ##??# | | ???????????????????## ##???# #???## | | ????????????????????# ##???# #????## | | ????????????????????## #???## ?????## # | | ?????????????????????## #????## #?????####? | | ??????????????????????#####?????## #?????????? | | ??????????????????????????????????##?????????? | | ?????????????????????????????????????????????? | | ?????????????????????????????????????????????? | | ?????????????????????????????????????????????? | | | | | | | | | | | | | | | | | | | | | +----------------------------------------------------+ Best States ------------- Heat Dissipation 25 Energy Generation 10 Energy Capacity 250 Matter Stores 300 Matter Capacity 300 Sight Range 16 Terrain Scan Density 60 Resistance: KI 20 Resistance: TH 20 Resistance: EX 20 Resistance: EM 20 Resistance: I 20 Resistance: S 20 Resistance: P 20 Evasion (%) 40 Targeting Accuracy 5 Offensive Hacking 10 Item Schematics ----------------- None Robot Schematics ------------------ None Fabricated ------------ Nothing Alien Tech Used ----------------- None Achievements -------------- root@ Challenges ------------ None Game ------ Seed VagabondTruffle Manual? 1 Play Time 00:25:21 Cumulative 15.5 hours Start 2020.10.03 @ 18:12:16 End 2020.10.03 @ 18:34:17 Sessions 1 Manual Loads 0 Difficulty Adventurer Special Mode None Game No. 12 Rogue 2 Adventurer 9 Explorer 1 Win Type - Total 0 Types 0/0/0/0/0/0/0/0/0 Lore% 14 Gallery% 25 Achievement% 18 Wizard Run 0 Options --------- ASCII 0 Keyboard 0 Movement Mouse Keybinds 0 Fullscreen 1 Font 18/Terminus Map View 76x50 Tactical HUD 1 Map Filters NONE Filters NONE Steam 1 RUN: 45b23ff2-57e3-4c19-b76a-65b3668a2a67